Cogmind - Beta 11.2 @@@ ROGUE MODE // 2023.02.23 @ 05:59:20 Player: kaj Result: Destroyed by G-47 Trooper with Particle Gun Performance ------------- Evolutions (0) 0 Regions Visited (4) 800 Robots Destroyed (22) 110 Value Destroyed (455) 455 Prototype IDs (23) 460 Alien Tech Used (0) 0 Bonus (300) 300 TOTAL SCORE: 2125 Bonus ------- Aligned with FarCom 300 Cogmind --------- Core Integrity 0/250 Matter 294/300 Energy 100/100 System Corruption 0% Temperature Cool (9) Movement Treading (160) Location -9/Mines Parts ------- > --- POWER (1) -------- (None) > --- PROPULSION (2) --- Improved Treads > --- UTILITY (2) ------ Large Storage Unit > --- WEAPON (2) ------- Light Assault Rifle Light Assault Rifle > --- INVENTORY (15) --- Ion Engine Improved Treads Improved Treads Large Storage Unit Medium Matter Pod (37) Cloak of Protection Light Armor Plating Light Armor Plating Medium Laser Light Assault Rifle Light Assault Rifle Light Assault Rifle Rocket Launcher Maul Peak State ------------ > --- POWER ------------ Light Ion Engine > --- PROPULSION ------- Improved Treads Improved Treads > --- UTILITY ---------- Large Storage Unit Signal Interpreter > --- WEAPON ----------- Light Assault Rifle Light Assault Rifle > --- INVENTORY -------- Ion Engine Improved Treads Improved Treads Large Storage Unit Medium Matter Pod Cloak of Protection Light Armor Plating Light Armor Plating Medium Laser Light Assault Rifle Light Assault Rifle Light Assault Rifle Rocket Launcher Maul [Rating: 11] Favorites ----------- Power Ion Engine Engine Ion Engine Propulsion Improved Treads Treads Improved Treads Leg Aluminum Leg Wheel Wheel Utility Large Storage Unit Storage Large Storage Unit Processor Signal Interpreter Weapon Light Assault Rifle Energy Gun Small Laser Ballistic Gun Light Assault Rifle Build | -11 -10 -10 -10 -9 ------- Run | Scr Mat Min Exi Min Slots Evolved . | . . . . . Power . | . . . . . Propulsion . | . . . . . Utility . | . . . . . Weapon . | . . . . . Parts Attached 12 | . 9 3 . . Power 1 | . . 1 . . Engine 1 | . . 1 . . Core . | . . . . . Reactor . | . . . . . Propulsion 4 | . 4 . . . Treads 2 | . 2 . . . Leg . | . . . . . Wheel 2 | . 2 . . . Hover . | . . . . . Flight . | . . . . . Utility 2 | . 2 . . . Device . | . . . . . Storage 1 | . 1 . . . Processor 1 | . 1 . . . Hackware . | . . . . . Protection . | . . . . . Artifact . | . . . . . Weapon 5 | . 3 2 . . Energy Gun . | . . . . . Energy Cannon . | . . . . . Ballistic Gun 5 | . 3 2 . . Ballistic Cannon . | . . . . . Launcher . | . . . . . Special Weapon . | . . . . . Impact Weapon . | . . . . . Slashing Weapon . | . . . . . Piercing Weapon . | . . . . . Special Melee Weapon . | . . . . . Unidentified Prototypes . | . . . . . Parts Lost 3 | . . 1 . 2 Power 2 | . . 1 . 1 Propulsion 1 | . . . . 1 Utility . | . . . . . Weapon . | . . . . . Highest Loss Streak 2 | . . 1 . 2 To Critical Strikes . | . . . . . Average Slot Usage (%) 95 | . 93 99 94 78 Engine 13 | . 14 13 14 7 Treads 22 | . 14 28 28 28 Leg 1 | . 4 . . . Wheel 3 | . 9 . . . Storage 14 | . 14 14 14 14 Processor 10 | . 8 14 8 . Ballistic Gun 27 | . 25 28 28 28 Naked Turns . | . . . . . Heaviest Build 27 | 12 27 27 25 25 Greatest Support 46 | 20 46 46 46 46 Greatest Overweight (x) . | . . . . . Average Overweight (x) . | . . . . . Largest Inventory Capacity 15 | 8 15 15 15 15 Average Capacity 13 | 8 11 15 15 15 Most Carried 15 | 6 13 15 15 14 Average Carried 12 | 6 8 14 14 14 Final Capacity 15 | 8 15 15 15 15 Final Carried 15 | 6 13 15 14 14 Class Distribution -------------------- 100% | Mutant Dominant Class ---------------- Mutant | -10/Materials Mutant | -10/Mines Mutant | -10/Exiles Mutant | -9/Mines Resources | -11 -10 -10 -10 -9 ----------- Run | Scr Mat Min Exi Min Matter Collected 472 | 200 180 92 . . Remotely . | . . . . . Salvage Created 561 | . 419 92 . 50 Parts 43 | . 32 9 . 2 Haulers Intercepted . | . . . . . Recyclers Shooed 1 | . 1 . . . Parts Field Recycled . | . . . . . Retrieved Matter . | . . . . . Parts Self-Destructed . | . . . . . Prevented . | . . . . . Kills | -11 -10 -10 -10 -9 ------- Run | Scr Mat Min Exi Min Combat Hostiles Destroyed 21 | . 14 6 . 1 Guns 21 | . 14 6 . 1 Classes Destroyed 3 | . 3 . . . Watcher 1 | . 1 . . . Swarmer 12 | . 6 6 . . Grunt 9 | . 8 . . 1 Best Kill Streak 4 | . 4 3 . 1 Combat Bots Only 4 | . 4 3 . 1 Max Kills in Single Turn 1 | . 1 1 . 1 Gunslinging . | . . . . . Exploded . | . . . . . Melee . | . . . . . Uniques/NPCs Destroyed . | . . . . . Combat | -11 -10 -10 -10 -9 -------- Run | Scr Mat Min Exi Min Damage Taken 1021 | . 675 194 . 152 Core 263 | . 223 10 . 30 Absorbed by Shields . | . . . . . Core Remaining (%) 100 | 100 . . . . Volleys Fired 71 | . 49 14 . 8 Largest 2 | . 2 2 . 2 Hottest 60 | . 60 40 . 40 Shots Fired 142 | . 98 28 . 16 Gun 142 | . 98 28 . 16 Cannon . | . . . . . Launcher . | . . . . . Special . | . . . . . Kinetic 136 | . 92 28 . 16 Thermal 6 | . 6 . . . Explosive . | . . . . . Electromagnetic . | . . . . . Robot Hit Streak 7 | . 7 3 . 7 Robot Miss Streak 5 | . 5 5 . 1 Penetration Max . | . . . . . Secondary Targets 3 | . 1 1 . 1 Max Gunslinging Chain 1 | . 1 1 . 1 Shots Hit Robots 86 | . 63 11 . 12 Core Hits 40 | . 31 6 . 3 Critical Kills 1 | . 1 . . . Critical Parts Destroyed . | . . . . . Critical Strikes 1 | . 1 . . . Destroy 1 | . 1 . . . Melee Attacks . | . . . . . Impact . | . . . . . Slashing . | . . . . . Piercing . | . . . . . Sneak Attacks . | . . . . . Combat Hostiles . | . . . . . Follow-up Attacks . | . . . . . Damage Inflicted 724 | . 520 113 . 91 Guns 724 | . 520 113 . 91 Cannons . | . . . . . Explosions . | . . . . . Melee . | . . . . . Ramming . | . . . . . Kinetic 704 | . 500 113 . 91 Thermal 20 | . 20 . . . Explosive . | . . . . . Electromagnetic . | . . . . . Impact . | . . . . . Slashing . | . . . . . Piercing . | . . . . . Highest Corruption . | . . . . . Average Corruption . | . . . . . Corruption Purged . | . . . . . Corruption Blocked . | . . . . . Overload Shots . | . . . . . Overflow Damage . | . . . . . Projectiles . | . . . . . Explosions . | . . . . . Melee . | . . . . . Knockbacks . | . . . . . Impact . | . . . . . Kinetic . | . . . . . Secondary . | . . . . . Self-Inflicted Damage . | . . . . . Shots . | . . . . . Rammed . | . . . . . Targets Rammed . | . . . . . Kicked . | . . . . . Crushed . | . . . . . Highest Temperature 40 | . 40 . . 25 Average Temperature 12 | . 12 . . 11 Received Heat Transfer 294 | . 204 . . 90 Siege Activations . | . . . . . Robots Corrupted . | . . . . . Combat Hostiles . | . . . . . Parts Fried . | . . . . . Impact Corruptions . | . . . . . Robots Melted . | . . . . . Combat Hostiles . | . . . . . Parts Melted . | . . . . . Heat Transferred 50 | . 50 . . . Parts Sabotaged . | . . . . . Parts Stolen . | . . . . . Parts Stripped . | . . . . . Power Chain Reactions . | . . . . . Missiles Intercepted . | . . . . . Alert | -11 -10 -10 -10 -9 ------- Run | Scr Mat Min Exi Min Peak Influence 291 | . 291 109 . 20 Initial 79 | . . 79 . . Average 115 | . 158 69 . 6 Maximum Alert Level 1 | . 1 . . . Low Security (%) 80 | 100 63 100 . 100 Level 1 19 | . 36 . . . Level 2 . | . . . . . Level 3 . | . . . . . Level 4 . | . . . . . Level 5 . | . . . . . High Security . | . . . . . Max Security . | . . . . . Squads Dispatched 3 | . 3 . . . Investigation 1 | . 1 . . . Extermination . | . . . . . Reinforcement 2 | . 2 . . . Assault . | . . . . . Garrison . | . . . . . Intercept . | . . . . . Searches Triggered . | . . . . . Construction Impeded . | . . . . . Haulers Reinforced . | . . . . . Active Scanning Responses . | . . . . . Cargo Convoy Interrupts . | . . . . . Stealth | -11 -10 -10 -10 -9 --------- Run | Scr Mat Min Exi Min Distress Signals 1 | . 1 . . . Communications Jammed . | . . . . . Distress Signals . | . . . . . Times Spotted 26 | . 18 6 . 2 Peak Tracking Total 5 | . 5 3 . 2 Tactical Retreats . | . . . . . Traps | -11 -10 -10 -10 -9 ------- Run | Scr Mat Min Exi Min Traps Triggered 1 | . 1 . . . Indirectly . | . . . . . Trap Hack Attempts . | . . . . . Triggered . | . . . . . Disarmed . | . . . . . Reprogrammed . | . . . . . Reused . | . . . . . Traps Extracted . | . . . . . Installed . | . . . . . Triggered . | . . . . . Exploded 1 | . . . 1 . Machines | -11 -10 -10 -10 -9 ---------- Run | Scr Mat Min Exi Min Machines Disabled . | . . . . . Max in Single Turn . | . . . . . Machines Sabotaged . | . . . . . Garrisons Compromised . | . . . . . Overloaded Fab Kills . | . . . . . Hacking | -11 -10 -10 -10 -9 --------- Run | Scr Mat Min Exi Min Machines Accessed 5 | . 4 . 1 . Terminals 4 | . 4 . . . Fabricators . | . . . . . Repair Stations . | . . . . . Recycling Units . | . . . . . Scanalyzers . | . . . . . Garrison Access . | . . . . . Total Hacks 11 | . 10 . 1 . Successful 3 | . 2 . 1 . Failed 8 | . 8 . . . Catastrophic 1 | . 1 . . . Database Lockouts . | . . . . . Manual 5 | . 4 . 1 . Terminals 10 | . 10 . . . Fabricators . | . . . . . Repair Stations . | . . . . . Recycling Units . | . . . . . Scanalyzers . | . . . . . Garrison Access . | . . . . . Terminal Hacks 3 | . 2 . 1 . Robot Analysis 1 | . 1 . . . Zone Layout 1 | . 1 . . . EX-Prototype ID Bank 1 | . . . 1 . Fabricator Hacks . | . . . . . Repair Station Hacks . | . . . . . Recycling Unit Hacks . | . . . . . Scanalyzer . | . . . . . Garrison Access Hacks . | . . . . . Unauthorized Hacks . | . . . . . Terminals . | . . . . . Fabricators . | . . . . . Repair Stations . | . . . . . Recycling Units . | . . . . . Scanalyzers . | . . . . . Garrison Access . | . . . . . Data Cores Recovered . | . . . . . Used . | . . . . . Hacking Detections 4 | . 4 . . . Full Trace Events 1 | . 1 . . . Feedback Events . | . . . . . Feedback Blocked . | . . . . . Robot Schematics Acquired . | . . . . . Robots Built . | . . . . . Authchips . | . . . . . Time . | . . . . . Total Robot Build Rating . | . . . . . Part Schematics Acquired . | . . . . . Parts Built . | . . . . . Authchips . | . . . . . Time . | . . . . . Total Part Build Rating . | . . . . . Parts Repaired . | . . . . . Time . | . . . . . Parts Recycled . | . . . . . Recycled Matter . | . . . . . Retrieved Matter . | . . . . . Retrieved Components . | . . . . . Parts Scanalyzed . | . . . . . Part Schematics Acquired . | . . . . . Parts Damaged . | . . . . . Bothacking | -11 -10 -10 -10 -9 ------------ Run | Scr Mat Min Exi Min Used RIF Installer . | . . . . . Robots Hacked . | . . . . . Non-combat . | . . . . . Combat . | . . . . . Robot Hacks Applied . | . . . . . Relay Couplers Released . | . . . . . Fabnet Peak Effective % . | . . . . . Robots Rewired . | . . . . . Allies Hacked . | . . . . . Hacks Repelled . | . . . . . Allies | -11 -10 -10 -10 -9 -------- Run | Scr Mat Min Exi Min Total Allies 1 | . . 1 . . Largest Group 1 | . . 1 1 . Highest-Rated Group 31 | . . 31 31 . Highest-Rated Ally 31 | . . 31 31 . Total Orders . | . . . . . Ally Attacks . | . . . . . Total Damage . | . . . . . Kills . | . . . . . Allies Corrupted . | . . . . . Allies Melted . | . . . . . Intel | -11 -10 -10 -10 -9 ------- Run | Scr Mat Min Exi Min Robot Analysis Total 1 | . 1 . . . Derelict Logs Recovered . | . . . . . Drone Launches . | . . . . . Drone Recoveries . | . . . . . Exploration | -11 -10 -10 -10 -9 ------------- Run | Scr Mat Min Exi Min Turns Passed 1621 | 4 673 570 352 22 Spaces Moved 918 | 4 369 325 219 1 Core . | . . . . . Treads 731 | . 186 325 219 1 Legs 69 | 4 65 . . . Wheels 118 | . 118 . . . Hover . | . . . . . Flight . | . . . . . Fastest Speed 90 | 120 90 160 160 160 Average Speed 147 | 120 130 160 160 160 Slowest Speed 160 | 120 160 160 160 160 Overloaded Moves . | . . . . . Propulsion Burnouts . | . . . . . Robots Hopped . | . . . . . Cave-ins Triggered . | . . . . . Exploration Rate (%) 37 | 2 64 58 61 3 Regions Visited 4 Branch Regions 3 Pre-discovered Areas . | . . . . . Known Exits Taken 2 | . 1 1 . . Unknown Exits Taken 2 | 1 . . 1 . Scrap Searched . | . . . . . Spaces Dug . | . . . . . Terrain Destroyed . | . . . . . Melee . | . . . . . Projectile . | . . . . . AOE . | . . . . . Terrain Rammed . | . . . . . Walls Destroyed . | . . . . . Machines Disabled . | . . . . . Actions | -11 -10 -10 -10 -9 --------- Run | Scr Mat Min Exi Min Total 1069 | 3 483 352 222 9 Wait 43 | . 33 10 . . Move 914 | 3 368 324 218 1 Hop . | . . . . . Pick Up 15 | . 13 1 1 . Fast Attach 3 | . 3 . . . Attach 3 | . 2 1 . . Detach . | . . . . . Swap 6 | . 4 2 . . Drop 14 | . 11 . 3 . Fire 71 | . 49 14 . 8 Melee . | . . . . . Ram . | . . . . . Kick . | . . . . . Crush . | . . . . . Escape Stasis . | . . . . . Rewire . | . . . . . Trap . | . . . . . Miscellaneous . | . . . . . Route ------- -11/Scrapyard -10/Materials (discovered 3 exits: *Mat / *Min x2) -10/Mines (discovered 3 exits: *Mat x2 / *Exi) -10/Exiles -9/Mines History --------- Turn | Location | Event 1 | -11/Scrapyard | Discovered new exit (range 1) 5 | -11/Scrapyard | Entered Materials 131 | -10/Materials | Discovered new exit (range 15) 237 | -10/Materials | Core integrity fell below 50% 300 | -10/Materials | Build established: Mutant 315 | -10/Materials | Discovered new exit (range 13) 318 | -10/Materials | Identified exit to Materials 329 | -10/Materials | Identified exit to Mines 445 | -10/Materials | Discovered exit to Mines (range 12) 583 | -10/Materials | Core integrity fell below 20% 678 | -10/Materials | Entered Mines 700 | -10/Mines | Received a Rocket Launcher from a helpful Derelict 844 | -10/Mines | Discovered exit to Materials (range 8) 883 | -10/Mines | Discovered exit to Materials (range 8) 1160 | -10/Mines | Escorted by a lone wolf Derelict 1240 | -10/Mines | Deemed a non-threat by the Exiles lab entrance 1242 | -10/Mines | Discovered new exit (range 5) 1247 | -10/Mines | Identified exit to Exiles 1248 | -10/Mines | Entered Exiles 1248 | -10/Exiles | Accompanied by 1 ally 1288 | -10/Exiles | Met 8R-AWN 1317 | -10/Exiles | Met EX-HEX 1362 | -10/Exiles | Met EX-BIN 1381 | -10/Exiles | Aligned with FarCom system 1383 | -10/Exiles | Given EX-Vault access code 1423 | -10/Exiles | Opened EX-Vault 1442 | -10/Exiles | Found Cloak of Protection 1478 | -10/Exiles | Warned to stay clear of 0b10 Research branches 1490 | -10/Exiles | Exiles lab attacked by MAIN.C 1587 | -10/Exiles | Discovered new exit (range 10) 1600 | -10/Exiles | Left Exiles lab with Cloak of Protection 1600 | -10/Exiles | Entered Mines 1622 | -9/Mines | Destroyed by G-47 Trooper with Particle Gun Last Messages --------------- 01490_ EXILES: Incoming Unaware force detected on approach from Mines. Prepare for evacuation. 01525_ EXILES: Lab perimeter alert, evacuate immediately. 01527_ EX-DEC: "Just gonna leave this little present behind for fun..." 01527_ EX-DEC deploys DAS Turret. 01531_ 8R-AWN: "We've got company!" 01534_ EX-BIN: "Not cool, MAIN.C, I don't even have my SDF Cannon ready..." 01535_ 8R-AWN: "I'll cover you all, get out of here!" 01587_ EXIT=FOUND LOCATION=UNKNOWN GOAL=ESCAPE 01600_ Receiving FarCom transmissions... 01601_ GM-J5T: "That was close. Too bad in all the rush we got split up from the others." 01601_ GM-J5T destroyed. 01610_ G-34 Mercenary destroyed. 01610_ Switching to secondary target: G-47 Trooper. 01614_ Lgt. Ion Engine destroyed. 01620_ Imp. Treads destroyed. Map ----- +----------------------------------------------------+ | ????????????????????????????????????? | | ????????????????????????????????????? | | ????????????????????????????????????? | | ????????????????????????????????????? | | ????????????????????????????????????? | | ????????????????????????????????????? | | ????????????????????????????????????? | | ????????????????????????????????????? | | ????????????????????????????????????? | | ????????????????????????????????????? | | ????????????????????????????????????? | | ????????????????????????????????????? | | ????????????????????????????????????? | | ????????????????????????????????????? | | ????????????????????????????????????? | | ????????????????????????????????????? | | ????????????????????????????????????? | | ????????????????????????????????????? | | ????????????????????????????????????? | | ????????????????????????###?????????? | | ???????????????????????? #?????????? | | ???????????????????????? #?????????? | | ????????????????????????# #?????????? | | ????????????????????????# #?????????? | | ????????????????????????# #?????????? | | ??????????????????????###@#####?????? | | ??????????????????????#[%= #?????? | | ?????????????????????#T !** #?????? | | ?????????????????????## %g #?????? | | ??????????????????????# """ #?????? | | ??????????????????????# """ #?????? | | ??????????????????????# """ #?????? | | ??????????????????????#########?????? | | ????????????????????????????????????? | | | | | | | | | | | | | | | | | | | | | | | | | | | | | | | | | +----------------------------------------------------+ Best States ------------- Heat Dissipation 25 Energy Generation 10 Energy Capacity 250 Matter Stores 300 Matter Capacity 300 Sight Range 16 Terrain Scan Density 10 Evasion (%) 55 Recoil Reduction 2 Item Schematics ----------------- None Robot Schematics ------------------ None Fabricated ------------ Nothing Alien Tech Used ----------------- None Achievements -------------- None Challenges ------------ None Game ------ Seed DerelictCargoCutter Manual? 0 Play Time 00:11:55 Cumulative 126.5 hours Start 2023.02.23 @ 05:47:00 End 2023.02.23 @ 05:59:20 Sessions 1 Manual Loads 0 Difficulty Rogue Special Mode None Game No. 190 Rogue 190 Adventurer 0 Explorer 0 Win Type - Total 0 Types 0/0/0/0/0/0/0/0/0 Lore% 49 Gallery% 56 Achievement% 43 Wizard Run 0 Options --------- ASCII 0 Keyboard 0 Movement Mouse Keybinds 1 Fullscreen 0 Font 12/Smallcaps Map View 76x50 Tactical HUD 1 Map Filters SATURATION(75) Filters LOW_CONTRAST(23,23,23) Steam 1 RUN: 42f62127-47b1-4533-bc24-afc868e7a336